bitfinex/quotes_ETHUSD_20240719
["timestamp","ask_amount","ask_price","bid_price","bid_amount"]
[1721407319968,13.93632257,3497.1,3495.2,5.24236]
[1721407320175,1.39363226,3497.0,3495.3,0.52995729]
[1721407320372,0.55,3496.9,3495.4,2.86082]
[1721407320578,3.0,3497.0,3495.7,2.86065]
[1721407320796,3.0,3497.0,3495.8,2.86057]
[1721407321014,3.0,3497.0,3495.9,5.15417]
[1721407321195,3.0,3497.0,3496.0,0.801482]
[1721407321674,3.0,3497.0,3495.9,2.2937]
[1721407323073,3.0,3497.0,3495.9,5.15418]
[1721407323284,7.47,3497.1,3496.2,2.86018]
[1721407323495,7.47,3497.1,3496.3,2.3227]
[1721407323698,2.646,3497.9,3496.8,2.85975]
[1721407323699,7.47,3497.9,3496.8,2.85975]
[1721407323924,7.47,3498.3,3496.8,2.85975]
[1721407324081,7.47,3498.3,3496.9,2.85967]
[1721407324281,7.47,3498.3,3496.8,2.91692843]
[1721407324522,7.47,3498.3,3496.9,5.18231]
[1721407324709,7.47,3498.3,3497.0,1.105606]
[1721407325103,7.47,3498.3,3497.0,3.965166]
[1721407325309,7.47,3498.3,3497.1,2.8595]
[1721407325814,7.47,3498.3,3497.0,1.105606]
[1721407326515,7.47,3498.3,3497.0,3.965176]
[1721407326699,7.47,3498.3,3497.1,3.7742576]
[1721407327380,7.47,3498.3,3497.1,0.9147476]
[1721407328200,10.116,3498.3,3497.1,0.9147476]
[1721407328813,7.47,3498.3,3497.1,0.9147476]
[1721407329012,11.306,3498.7,3497.2,0.04312785]
[1721407329231,3.91535,3498.6,3497.2,0.04312785]
[1721407330272,2.646,3498.3,3497.2,0.04312785]
[1721407330473,2.646,3497.9,3496.9,2.3227]
[1721407330786,2.646,3497.9,3497.0,0.04290979]
[1721407330993,2.646,3497.9,3496.9,2.3227]
[1721407330994,0.2646,3497.8,3496.9,2.3227]
[1721407331387,0.2646,3497.8,3497.0,0.04290979]
[1721407332610,3.0,3498.2,3497.0,0.04290979]
[1721407335877,2.646,3497.9,3497.0,0.04290979]
[1721407336083,2.646,3497.5,3496.4,2.4315]
[1721407336916,2.646,3497.5,3496.5,0.04145835]
[1721407338491,2.646,3497.5,3496.4,2.4315]
[1721407338696,2.646,3497.5,3496.5,0.04013952]
[1721407338697,0.2646,3497.4,3496.5,0.04013952]
[1721407338895,3.2646,3497.4,3496.5,0.04013952]
[1721407339104,3.2646,3497.4,3495.7,2.4315]
[1721407339280,3.2646,3497.4,3496.6,0.04012796]
[1721407339481,0.59106,3497.3,3496.6,0.04012796]
[1721407339704,0.59106,3497.3,3495.7,5.29213]
[1721407339917,0.59106,3497.3,3496.7,0.0401164]
[1721407340080,0.59106,3497.3,3495.9,2.86049]
[1721407340285,0.59106,3497.3,3496.0,0.04019731]
[1721407340481,0.59106,3497.3,3496.1,0.29006873]
[1721407340676,0.59106,3497.3,3496.2,0.04017419]
[1721407341306,3.0,3497.4,3496.3,2.4886956]
[1721407341513,3.0,3497.7,3496.3,5.33177263]
[1721407341882,3.0,3497.7,3496.4,2.86007]
[1721407342095,7.47,3498.1,3496.8,2.4315]
[1721407342326,2.646,3498.3,3496.9,0.5692203]
[1721407343736,7.47,3498.5,3497.0,2.85956]
[1721407343887,7.47,3498.5,3497.0,2.89964174]
[1721407344312,2.646,3498.4,3497.0,2.89964174]
[1721407344545,7.47,3498.5,3497.1,0.87200087]
[1721407344818,7.47,3498.5,3497.2,0.05717843]
[1721407345001,1.19,3498.7,3497.5,2.85915]
[1721407345190,1.19,3498.7,3497.4,2.85923]
[1721407345384,3.836,3498.7,3497.6,0.04001244]
[1721407345619,3.836,3498.7,3497.5,0.04002398]
[1721407345802,3.836,3498.7,3497.7,0.04000089]
[1721407346002,4.9666,3498.7,3497.3,2.4315]
[1721407346206,4.9666,3498.7,3497.8,0.03987458]
[1721407346489,4.9666,3498.7,3497.3,2.4315]
[1721407346726,4.9666,3498.7,3497.4,0.03992078]
[1721407348429,5.02382574,3498.7,3497.4,0.03992078]
[1721407348631,1.24938257,3498.6,3497.4,0.28706286]
[1721407348789,0.05722574,3498.5,3497.4,0.28706286]
[1721407348997,1.30660831,3498.6,3497.4,0.28706286]
[1721407349621,1.24938257,3498.6,3497.4,0.28706286]
[1721407349817,1.30660831,3498.6,3497.4,0.28706286]
[1721407350017,0.62732083,3498.5,3497.4,0.28706286]
[1721407350728,0.62732083,3498.5,3497.4,0.24714208]
[1721407350942,0.62732083,3498.5,3497.5,0.03978055]
[1721407351310,3.0,3498.6,3497.5,0.03978055]
[1721407355544,3.05722574,3498.6,3497.5,0.03978055]
[1721407356110,2.646,3497.9,3496.8,2.3408]
[1721407356434,2.646,3497.9,3497.6,0.03976726]
[1721407356630,0.2646,3497.8,3496.4,2.3408]
[1721407356942,0.2646,3497.8,3496.5,0.03989434]
[1721407357448,0.05722574,3497.7,3496.5,0.03989434]
[1721407358202,0.2646,3497.8,3496.5,0.03989434]
[1721407359214,0.32182574,3497.8,3496.5,0.03989434]
[1721407359452,2.58458257,3497.7,3496.5,0.03989434]
[1721407361024,2.646,3497.5,3496.5,0.03989434]
[1721407361233,2.646,3496.7,3495.5,2.2783]
[1721407361639,2.646,3496.7,3495.6,0.04008531]
[1721407364624,2.2878,3497.0,3495.6,0.04008531]
[1721407364817,2.2878,3497.0,3495.7,0.23183853]
[1721407365357,2.2878,3497.0,3495.8,0.04019382]
[1721407366631,5.2878,3497.0,3495.8,0.04019382]
[1721407368062,2.4213,3496.9,3495.8,0.04019382]
[1721407368219,5.4213,3496.9,3495.8,0.04019382]
[1721407368417,1.10673,3496.8,3495.8,0.04019382]
[1721407368643,1.10673,3496.8,3495.0,5.87619]
[1721407368644,4.10673,3496.8,3495.2,2.86106]
[1721407369165,4.10673,3496.8,3495.3,2.90122164]
[1721407369333,3.0,3496.8,3495.4,2.86089]
[1721407369575,2.4213,3496.9,3495.5,0.04022851]
[1721407370027,2.4213,3496.9,3495.6,2.254]
[1721407370546,2.4213,3496.9,3495.7,0.04020538]
[1721407372965,0.05722574,3496.8,3495.7,0.04020538]
[1721407373125,0.81245257,3496.8,3495.7,0.04020538]
[1721407373454,3.0,3496.8,3495.7,0.04020538]
[1721407373661,3.0,3497.0,3495.7,0.04020538]
[1721407376130,5.4213,3497.3,3495.7,0.04020538]
[1721407376354,5.4213,3497.3,3495.8,0.22942054]
[1721407376355,1.55373,3497.2,3495.8,0.22942054]
[1721407376565,2.646,3497.1,3495.9,0.04039735]
[1721407376722,3.0,3497.0,3495.6,2.254]
[1721407376922,3.0,3497.0,3495.7,0.04041177]
[1721407377234,0.719973,3496.9,3495.7,0.04041177]
[1721407378760,3.0,3497.0,3495.7,0.04041177]
[1721407379139,3.0,3497.3,3495.7,0.04041177]
[1721407379536,3.0,3497.3,3495.8,2.3816]
[1721407379743,3.0,3497.3,3495.9,0.04038865]
[1721407380082,7.47,3497.8,3496.4,2.86003]
[1721407380363,1.19,3497.9,3496.5,5.527533]
[1721407380567,1.19,3497.9,3496.9,2.3816]
[1721407380764,1.19,3497.9,3497.0,0.04025109]
[1721407380974,1.19,3497.9,3497.1,0.52815311]
[1721407381274,1.19,3497.9,3497.2,0.04022798]
[1721407382225,1.19,3497.9,3496.9,2.3816]
[1721407382429,7.47,3498.3,3497.4,2.3552]
[1721407382967,7.47,3498.3,3497.5,0.0400194]
[1721407383171,7.47,3498.3,3497.6,0.23952194]
[1721407383334,7.47,3498.3,3497.6,0.27936802]
[1721407383680,7.47,3499.0,3497.6,0.27936802]
[1721407383965,1.19,3499.3,3497.6,0.27936802]
[1721407385445,2.646,3499.1,3497.6,0.27936802]
[1721407385676,0.3836,3499.0,3497.6,0.27936802]
[1721407385843,3.3836,3499.0,3497.6,0.27936802]
[1721407386048,3.0,3498.9,3497.6,0.27936802]
[1721407386277,1.19,3499.3,3497.6,0.27936802]
[1721407386569,0.55,3499.2,3497.6,0.27936802]
[1721407387454,2.646,3499.1,3497.6,0.27936802]
[1721407387662,3.4386,3499.0,3497.7,2.3206]
[1721407388174,3.0,3498.9,3497.8,0.03982298]
[1721407388392,0.4386,3499.0,3497.8,0.03982298]
[1721407388559,3.196,3499.2,3497.7,2.3206]
[1721407388763,3.196,3499.2,3497.9,0.03981143]
[1721407388764,3.0,3499.1,3497.9,0.03981143]
[1721407388952,0.55,3499.0,3497.7,2.3206]
[1721407389154,0.55,3499.0,3498.0,0.03979989]
[1721407389352,0.55,3499.0,3497.7,2.3206]
[1721407389656,0.6196,3498.9,3498.1,0.03978834]
[1721407389855,0.6196,3498.9,3497.7,2.3206]
[1721407390078,1.19,3499.3,3497.7,2.3206]
[1721407390355,0.55,3499.2,3497.8,0.03982298]
[1721407390586,1.19,3499.3,3498.0,2.3489]
[1721407390770,12.19,3500.0,3498.0,2.3489]
[1721407390771,14.836,3500.0,3498.0,2.3489]
[1721407391088,14.836,3500.0,3498.1,0.03969271]
[1721407391251,14.836,3500.0,3498.3,2.375]
[1721407391451,10.116,3500.0,3498.3,2.375]
[1721407391652,0.05722574,3499.9,3498.4,0.0396546]
[1721407391970,3.05722574,3499.9,3498.3,2.375]
[1721407392173,0.55,3499.8,3498.3,2.375]
[1721407392350,0.55,3499.8,3498.4,0.26138593]
[1721407392351,1.38643356,3499.7,3498.4,0.26138593]
[1721407392658,0.55,3499.6,3498.4,0.30099707]
[1721407393287,2.646,3499.4,3497.7,2.4726]
[1721407393487,2.646,3498.9,3497.7,2.4726]
[1721407393990,3.0,3498.8,3497.8,0.03951872]
[1721407394154,0.05722574,3499.2,3497.8,0.03951872]
[1721407394155,10.52722574,3499.2,3497.8,0.03951872]
[1721407394354,0.55,3499.1,3497.7,2.4726]
[1721407394682,1.48454831,3499.0,3497.8,0.28677872]
[1721407394849,1.48454831,3499.0,3497.8,0.03951872]
[1721407395198,1.48454831,3499.0,3497.7,2.4726]
[1721407395546,1.48454831,3499.0,3497.8,0.03951872]
[1721407395751,0.55,3499.1,3497.7,2.4726]
[1721407395967,0.55,3499.1,3497.8,0.03951872]
[1721407396173,0.55,3499.1,3497.7,2.4726]
[1721407396562,0.55,3499.1,3497.8,0.03951872]
[1721407396976,0.60722574,3499.1,3497.7,2.4726]
[1721407397262,1.37232257,3499.0,3497.8,0.03951872]
[1721407397462,2.70322574,3498.9,3497.8,0.03951872]
[1721407397697,3.0,3499.2,3497.7,2.4726]
[1721407397698,3.0,3498.8,3497.7,2.4726]
[1721407397900,3.0,3499.2,3497.7,2.4726]
[1721407398071,1.1146,3499.1,3497.7,2.71986]
[1721407398277,2.646,3498.8,3497.7,2.4726]
[1721407398587,3.0,3498.7,3497.7,2.4726]
[1721407398788,3.0,3498.7,3497.8,0.03951872]
[1721407398990,1.17182574,3499.1,3497.7,2.4726]
[1721407399167,4.17182574,3499.1,3497.7,2.4726]
[1721407399370,2.646,3498.7,3497.7,2.4726]
[1721407399564,2.646,3498.7,3497.8,0.03957782]
[1721407399802,3.0,3498.6,3497.7,2.4726]
[1721407400370,3.0,3498.6,3497.8,0.03958999]
[1721407400597,3.0,3498.6,3497.7,2.4726]
[1721407400806,0.57032257,3498.5,3497.7,2.4726]
[1721407401663,0.57032257,3498.5,3497.8,0.03958999]
[1721407402025,0.57032257,3498.5,3497.7,2.4726]
[1721407402298,0.62754831,3498.5,3497.7,2.4726]
[1721407402613,2.646,3498.3,3496.9,2.2634]
[1721407402910,2.646,3497.9,3496.9,2.2634]
[1721407403060,0.05722574,3497.8,3496.9,2.2634]
[1721407403263,0.05722574,3497.7,3496.9,2.2634]
[1721407403463,0.57032257,3497.6,3496.9,2.2634]
[1721407403703,2.646,3497.5,3496.9,2.2634]
[1721407403902,3.0,3497.4,3496.9,2.2634]
[1721407404103,3.05722574,3497.4,3495.5,2.4135]
[1721407404316,3.05722574,3497.4,3495.8,2.4135]
[1721407404317,3.0,3497.4,3495.8,2.4135]
[1721407404516,0.62735483,3497.3,3495.9,0.527415]
[1721407404809,0.62735483,3497.3,3495.8,2.4135]
[1721407404969,0.62735483,3497.3,3496.0,0.04016658]
[1721407405170,0.62735483,3497.3,3495.9,0.04017814]
[1721407405478,0.62735483,3497.3,3495.8,2.4135]
[1721407405479,0.62735483,3497.3,3496.1,0.04015502]
[1721407405678,0.62735483,3497.3,3496.0,0.04016658]
[1721407405891,0.62735483,3497.3,3496.2,0.04014346]
[1721407406070,0.62735483,3497.3,3496.1,0.04015502]
[1721407406267,0.62735483,3497.3,3496.0,0.24536666]
[1721407406686,3.0,3497.4,3496.1,0.04015502]
[1721407406889,3.0,3497.4,3496.2,2.4363]
[1721407407172,5.70322574,3497.9,3496.3,0.04013191]
[1721407407508,0.55,3497.8,3496.2,2.4363]
[1721407407809,0.60722574,3497.8,3496.2,2.4363]
[1721407408008,1.55684175,3497.7,3496.3,0.04013191]
[1721407408173,0.55,3497.6,3496.2,2.70446667]
[1721407408373,0.55,3497.6,3496.4,0.04012035]
[1721407408606,0.55,3497.6,3496.2,2.70446667]
[1721407408824,3.55,3497.6,3496.5,0.04010879]
[1721407408983,3.51640675,3497.5,3496.2,2.70446667]
[1721407409187,0.51640675,3497.5,3496.6,0.04009724]
[1721407409391,3.60722574,3497.6,3496.2,2.70446667]
[1721407409598,3.60722574,3497.6,3496.3,0.04013191]
[1721407409803,0.60722574,3497.6,3496.2,2.70446667]
[1721407409988,0.55,3497.6,3496.3,0.04013191]
[1721407410181,1.55684175,3497.7,3496.2,2.70446667]
[1721407410399,1.27600675,3497.6,3496.3,0.31057858]
[1721407410605,4.27600675,3497.6,3496.3,0.27044667]
[1721407410978,4.27600675,3497.6,3496.4,0.04012035]
[1721407411175,3.0,3497.6,3496.4,0.04012035]
[1721407411395,3.0,3497.8,3496.5,2.313]
[1721407411599,3.0,3497.9,3496.5,2.313]
[1721407411867,3.0,3497.9,3496.6,0.0401616]
[1721407412139,6.693,3497.9,3496.7,0.23531616]
[1721407412334,6.75022574,3497.9,3496.6,0.0401616]
[1721407412623,0.55,3497.8,3496.5,2.313]
[1721407412915,0.60722574,3497.8,3496.5,2.313]
[1721407413617,3.0,3497.9,3496.5,2.313]
[1721407413828,3.0,3497.9,3496.6,0.27144246]
[1721407414879,3.0,3497.9,3496.7,2.334]
[1721407415179,3.0,3497.9,3496.8,0.0401037]
[1721407415385,3.0,3497.9,3496.9,2.334]
[1721407415610,3.0,3497.9,3497.0,0.04009626]
[1721407415816,7.47,3498.0,3497.2,2.4194]
[1721407417033,7.47,3498.0,3497.3,0.0400616]
[1721407417187,7.47,3498.0,3497.2,2.4194]
[1721407421140,10.47,3498.3,3497.2,2.4194]
[1721407423238,0.05722574,3498.2,3497.2,2.4194]
[1721407423419,1.05272257,3498.1,3497.2,2.4194]
[1721407423740,3.0,3498.1,3497.2,2.4194]
[1721407423893,10.47,3498.3,3497.2,2.4194]
[1721407425336,2.646,3498.2,3497.2,2.4194]
[1721407425494,3.0,3498.1,3497.2,2.4194]
[1721407425834,3.05722574,3498.1,3497.2,2.4194]
[1721407426080,2.646,3497.8,3497.2,2.4194]
[1721407426227,0.05722574,3497.7,3495.9,2.2789]
[1721407426432,3.0,3497.7,3496.1,2.2789]
[1721407426955,3.0,3497.7,3496.3,2.2789]
[1721407427364,3.0,3497.7,3496.5,2.2789]
[1721407427676,3.0,3497.7,3496.6,0.27189918]
[1721407428871,3.0,3497.7,3496.7,2.2789]
[1721407429071,3.0,3497.7,3496.7,2.31889469]
[1721407431976,3.0,3498.2,3496.7,2.31889469]
[1721407432130,10.116,3498.3,3496.7,2.31889469]
[1721407432131,7.47,3498.3,3496.9,2.2789]
[1721407432576,7.47,3498.3,3497.1,2.2789]
[1721407432976,7.47,3498.3,3497.2,0.03999606]
[1721407433182,7.47,3498.6,3497.2,0.03999606]
[1721407433477,2.646,3498.3,3497.2,0.23188961]
[1721407433650,3.0,3498.2,3497.3,0.03990449]
[1721407433847,3.0,3498.2,3497.2,0.23188961]
[1721407434066,3.0,3498.2,3497.3,0.03990449]
[1721407434261,3.57032257,3498.2,3497.3,0.03990449]
[1721407434780,3.62754831,3498.2,3497.3,0.03990449]
[1721407435278,3.62754831,3498.2,3497.1,2.2789]
[1721407435442,2.646,3497.9,3497.1,2.2789]
[1721407435638,2.70322574,3497.9,3497.1,2.2789]
[1721407435849,3.32532257,3497.8,3497.1,2.2789]
[1721407438540,8.04032257,3498.2,3497.1,2.2789]
[1721407438886,3.0,3498.1,3497.1,2.2789]
[1721407440043,3.0,3498.1,3497.2,2.29528736]
[1721407440881,3.0,3498.1,3497.3,0.03997581]
[1721407441089,3.0,3498.1,3497.2,2.2553]
[1721407441286,3.0,3498.1,3497.4,0.03996426]
[1721407441592,3.0,3498.1,3497.3,0.22553]
[1721407442154,0.05722574,3498.0,3497.2,2.2553]
[1721407442550,3.0,3498.1,3497.3,0.03997581]
[1721407442881,3.0,3498.1,3497.2,2.2553]
[1721407443287,3.0,3498.1,3497.3,0.03993754]
[1721407443480,3.0,3498.1,3497.2,2.2553]
[1721407443687,3.0,3498.1,3497.2,2.48083]
[1721407443882,3.0,3498.1,3497.3,0.03993754]
[1721407444177,3.0,3498.1,3497.2,2.2553]
[1721407444545,3.0,3498.1,3497.4,2.4101]
[1721407444946,7.47,3498.2,3497.5,0.03991444]
[1721407445153,7.47,3498.2,3497.6,0.24500144]
[1721407446574,7.47,3498.2,3497.8,2.3726]
[1721407446779,3.0,3498.5,3497.8,2.3726]
[1721407447292,7.47,3498.7,3497.8,2.3726]
[1721407447507,7.47,3498.7,3497.9,2.41246824]
[1721407447647,7.47,3498.7,3498.1,2.4691]
[1721407448079,7.47,3498.7,3498.2,0.03976751]
[1721407449087,7.47,3498.7,3498.1,2.4691]
[1721407449277,7.47,3498.7,3498.3,0.03969162]
[1721407449582,7.47,3498.7,3498.1,2.4691]
[1721407449777,7.47,3498.7,3498.2,0.27103468]
[1721407449980,7.47,3498.7,3498.4,0.03962096]
[1721407450180,7.47,3498.7,3498.5,2.4652]
[1721407450350,12.19,3499.2,3498.5,2.4652]
[1721407450553,12.19,3499.2,3498.6,0.03957702]
[1721407450748,12.19,3499.2,3498.6,0.29005472]
[1721407450965,12.19,3499.2,3498.6,0.2504777]
[1721407452384,0.05722574,3499.1,3498.5,2.4652]
[1721407452584,3.0,3499.1,3498.5,2.4652]
[1721407454304,10.116,3499.3,3498.5,2.4652]
[1721407454853,7.47,3499.3,3498.5,2.4652]
[1721407455058,7.47,3499.3,3498.5,2.71172]
[1721407455576,3.0,3499.2,3498.5,2.71172]
[1721407455983,3.0,3499.2,3498.6,0.03933195]
[1721407456677,3.0,3499.2,3498.5,2.71172]
[1721407458438,5.646,3499.2,3498.5,2.4652]
[1721407458793,0.05722574,3499.1,3498.5,2.4652]
[1721407459406,2.646,3498.8,3498.5,2.4652]
[1721407459631,3.0,3499.2,3498.5,2.4652]
[1721407459833,1.3116,3499.1,3498.5,2.4652]
[1721407464820,2.646,3498.9,3498.5,2.4652]
[1721407465863,1.3116,3499.1,3498.5,2.4652]
[1721407466365,2.646,3498.8,3498.5,2.4652]
[1721407466962,1.3116,3499.1,3498.5,2.4652]
[1721407467160,1.44276,3499.0,3498.5,2.4652]
[1721407470333,3.0,3499.2,3498.5,2.4652]
[1721407474458,2.646,3499.0,3498.5,2.4652]
[1721407474759,3.0,3498.9,3498.5,2.4652]
[1721407474970,3.0,3499.2,3498.5,2.4652]
[1721407476386,2.646,3499.0,3498.5,2.4652]
[1721407476683,3.0,3498.9,3498.5,2.4652]
[1721407477043,1.3116,3499.0,3498.5,2.4652]
[1721407477449,2.646,3498.9,3498.5,2.4652]
[1721407477868,1.3116,3499.0,3498.5,2.4652]
[1721407478461,2.646,3498.9,3498.5,2.4652]
[1721407478877,1.3116,3499.0,3498.5,2.4652]
[1721407479448,3.9576,3499.0,3498.5,2.4652]
[1721407479652,3.0,3498.9,3498.5,2.4652]
[1721407480180,3.0,3499.2,3498.5,2.4652]
[1721407480961,3.05722574,3499.2,3498.5,2.4652]
[1721407481484,2.646,3498.8,3497.2,2.2572]
[1721407481686,2.646,3498.8,3498.6,0.03925721]
[1721407481687,0.05722574,3498.7,3498.6,0.03925721]
[1721407481893,2.646,3498.8,3498.3,2.2963]
[1721407482891,1.60272257,3499.1,3498.3,2.2963]
[1721407483094,1.05272257,3499.1,3498.3,2.2963]
[1721407483890,5.646,3499.2,3498.3,2.2963]
[1721407486755,5.70322574,3499.2,3498.3,2.2963]
[1721407487391,5.646,3499.2,3498.3,2.2963]
[1721407496067,0.05722574,3499.1,3498.3,2.2963]
[1721407496293,2.70322574,3499.1,3498.3,2.2963]
[1721407496571,2.646,3498.7,3498.3,2.2963]
[1721407496774,2.646,3498.7,3496.4,2.4685]
[1721407496775,1.75722574,3498.6,3496.4,2.4685]
[1721407497012,2.646,3497.8,3496.4,2.4685]
[1721407497222,2.646,3497.8,3496.6,2.4685]
[1721407497371,2.646,3497.8,3496.8,2.476]
[1721407497772,2.646,3497.8,3496.9,0.03447037]
[1721407498489,3.05722574,3497.7,3496.9,0.03447037]
[1721407498683,3.05722574,3497.7,3496.8,2.476]
[1721407498912,2.646,3497.4,3496.8,2.476]
[1721407500875,0.05722574,3497.3,3496.8,2.476]
[1721407501136,2.646,3497.0,3495.5,2.383]
[1721407501340,2.646,3497.0,3496.9,0.03467168]
[1721407501639,2.646,3497.0,3496.4,2.383]
[1721407502127,7.47,3497.3,3496.4,2.383]
[1721407502350,1.06806,3497.2,3496.4,2.383]
[1721407503425,7.47,3497.3,3496.4,2.383]
[1721407506617,2.646,3497.0,3496.4,2.383]
[1721407506912,2.70322574,3497.0,3496.4,2.383]
[1721407507111,3.0,3496.9,3496.4,2.383]
[1721407508635,3.0,3496.9,3496.0,2.4159]
[1721407508817,2.646,3496.6,3496.0,2.4159]
[1721407509196,2.646,3496.6,3496.1,0.03177824]
[1721407510198,2.646,3496.2,3496.1,0.03177824]
[1721407510740,5.646,3496.2,3496.1,0.03178805]
[1721407510910,5.70322574,3496.2,3495.4,2.4939]
[1721407511101,2.646,3495.8,3495.4,2.4939]
[1721407511301,0.05722574,3495.7,3494.8,2.4939]
[1721407511530,3.05722574,3495.7,3495.5,0.03085355]
[1721407511731,3.05722574,3495.7,3494.8,2.4939]
[1721407511909,3.0,3495.7,3495.6,0.03089758]
[1721407512137,3.62754831,3495.7,3494.8,2.4939]
[1721407512302,2.646,3495.2,3494.8,2.4939]
[1721407512514,2.646,3495.2,3493.3,2.4939]
[1721407513152,3.0,3495.1,3493.3,2.4939]
[1721407513458,3.0,3495.1,3493.5,2.4939]
[1721407514267,2.646,3494.8,3493.5,2.4939]
[1721407515449,3.0,3494.7,3493.5,2.4939]
[1721407515813,3.05722574,3494.7,3493.5,2.4939]
[1721407516022,3.0,3494.7,3493.5,2.4939]
[1721407516259,3.0,3494.7,3493.6,0.24939]
[1721407518639,3.0,3494.7,3493.8,2.4353]
[1721407518942,3.0,3494.8,3493.9,0.03070847]
[1721407519930,3.0,3494.8,3493.8,2.4353]
[1721407520134,3.0,3494.8,3493.9,0.268469]
[1721407520359,3.0,3494.8,3493.9,0.29917747]
[1721407520691,7.47,3494.9,3494.0,2.4353]
[1721407520834,7.47,3494.9,3494.2,2.4353]
[1721407521173,7.47,3494.9,3494.3,0.03088273]
[1721407521470,7.47,3494.9,3494.4,2.4353]
[1721407521670,7.47,3494.9,3494.5,0.24353]
[1721407521874,7.47,3494.9,3494.6,0.03084802]
[1721407525196,7.47,3494.9,3494.7,2.432]
[1721407525492,7.47,3495.4,3494.8,0.03084396]
[1721407525784,7.47,3495.4,3494.7,2.432]
[1721407526858,8.217,3495.4,3494.7,2.432]
[1721407528025,3.0,3495.3,3494.7,2.432]
[1721407528308,3.0,3495.3,3494.0,2.4018]
[1721407528512,3.05722574,3495.3,3494.0,2.4018]
[1721407528706,2.70322574,3495.2,3494.1,0.03091801]
[1721407529017,1.39202257,3495.1,3494.1,0.03091801]
[1721407529214,2.646,3494.8,3494.0,2.4018]
[1721407529710,3.0,3494.7,3494.0,2.4018]
[1721407529869,1.39202257,3495.1,3494.0,2.4018]
[1721407530076,4.39202257,3495.1,3494.0,2.4018]
[1721407530310,1.00380226,3495.0,3494.0,2.4018]
[1721407531075,0.05722574,3494.9,3494.0,2.4018]
[1721407531305,1.00380226,3495.0,3494.0,2.4018]
[1721407533112,0.05722574,3494.9,3494.0,2.4018]
[1721407533540,1.00380226,3495.0,3494.0,2.4018]
[1721407533749,0.8671308,3494.9,3494.0,2.4018]
[1721407534050,2.646,3494.8,3494.0,2.4018]
[1721407535068,0.05722574,3494.7,3494.0,2.4018]
[1721407536225,0.05722574,3494.7,3493.1,2.4443]
[1721407536432,1.09831308,3494.6,3493.2,0.25846174]
[1721407536633,0.05722574,3494.5,3493.2,0.28776252]
[1721407537153,2.646,3494.4,3493.2,0.02930078]
[1721407537352,3.05722574,3494.3,3493.2,0.02930078]
[1721407537541,3.0,3494.3,3493.1,2.4443]
[1721407538583,8.27990506,3494.9,3493.3,2.273]
[1721407538743,3.0,3494.8,3493.3,2.273]
[1721407539060,3.0,3494.8,3493.5,2.273]
[1721407539462,3.0,3494.8,3493.6,2.30229096]
[1721407539838,7.47,3494.9,3493.7,2.273]
[1721407540030,7.47,3494.9,3493.8,2.273]
[1721407540227,7.47,3494.9,3494.0,2.273]
[1721407540641,7.47,3494.9,3494.2,2.273]
[1721407541070,7.47,3494.9,3494.3,0.02916824]
[1721407541381,7.47,3495.3,3494.4,2.273]
[1721407541669,7.47,3495.3,3494.6,2.273]
[1721407541969,7.47,3495.3,3494.7,0.02906116]
[1721407543555,7.47,3495.3,3494.8,0.0290496]
[1721407544036,7.47,3495.3,3494.6,2.273]
[1721407544429,7.47,3495.3,3494.7,0.02906116]
[1721407544635,0.867,3495.2,3494.6,2.273]
[1721407545966,0.867,3495.2,3494.7,0.02878673]
[1721407546172,7.47,3495.3,3494.7,0.02878673]
[1721407546335,7.47,3495.3,3494.6,2.273]
[1721407546737,7.47,3495.3,3494.7,0.05722646]
[1721407546948,7.47,3495.3,3494.7,0.02879888]
[1721407547151,7.47,3495.3,3494.8,2.3672]
[1721407547349,7.47,3495.3,3494.9,0.23959989]
[1721407547562,7.47,3495.3,3494.9,0.26837564]
[1721407548647,1.2,3495.4,3494.9,0.26837564]
[1721407548856,1.2,3495.4,3494.8,2.3672]
[1721407550876,1.2,3495.4,3493.6,2.4253]
[1721407551088,0.14558757,3495.3,3493.6,2.4253]
[1721407551257,0.14558896,3495.2,3493.7,2.4542146]
[1721407551450,1.2,3495.4,3493.7,2.4542146]
[1721407551767,0.57131254,3495.3,3493.9,2.4253]
[1721407551965,0.42572257,3495.3,3493.9,2.4253]
[1721407552153,0.14559035,3495.2,3494.0,0.02891287]
[1721407552360,0.20281609,3495.1,3494.0,0.02891287]
[1721407552540,2.646,3494.9,3494.0,0.02891287]
[1721407552740,0.28488161,3494.8,3494.0,0.02891287]
[1721407553049,0.28488161,3494.8,3493.9,2.4253]
[1721407553050,0.20283038,3494.7,3493.9,2.4253]
[1721407553248,0.14560464,3494.6,3493.0,0.14419298]
[1721407553448,2.70322574,3494.5,3493.1,2.4462]
[1721407553653,0.14560464,3494.4,3493.1,2.47435426]
[1721407553876,0.14560464,3494.4,3493.2,0.24743543]
[1721407554282,0.14560464,3494.4,3493.3,0.0281311]
[1721407555090,0.14560464,3494.4,3493.4,2.3599]
[1721407555286,0.14560464,3494.3,3493.4,2.3599]
[1721407555460,0.14560464,3494.2,3493.5,0.02817918]
[1721407555786,2.04210735,3494.8,3493.5,0.29173064]
[1721407555989,0.1456189,3494.7,3493.5,0.29173064]
[1721407556184,0.1456189,3494.6,3493.5,0.26355146]
[1721407556345,0.34210735,3494.8,3493.5,0.26355146]
[1721407556346,0.1456189,3494.5,3493.5,0.26355146]
[1721407556685,0.1456189,3494.4,3493.6,0.0281676]
[1721407556855,0.1456189,3494.3,3493.6,0.29332951]